bitfinex/quotes_ETHUSD_20260108
["timestamp","ask_amount","ask_price","bid_price","bid_amount"]
[1767900712439,0.96207657,3119.4,3118.8,0.45296983]
[1767900712647,2.88312117,3119.9,3118.8,0.45296983]
[1767900712648,5.00956004,3119.7,3118.9,2.88112117]
[1767900712925,0.96207657,3119.7,3119.0,3.20615581]
[1767900713145,0.96207657,3119.6,3118.9,7.02839923]
[1767900713337,0.96207657,3119.6,3118.9,7.528396]
[1767900714933,0.96207657,3119.5,3118.9,0.49999677]
[1767900715240,6.41115738,3119.6,3118.2,3.82418554]
[1767900715241,0.96207657,3119.3,3118.2,3.82418554]
[1767900715545,0.96207657,3119.3,3118.3,0.94106437]
[1767900715748,2.88312117,3119.9,3118.2,3.72412117]
[1767900715749,0.96207657,3119.7,3118.8,0.94106437]
[1767900715948,0.96207657,3119.7,3118.9,6.4695337]
[1767900716831,0.96207657,3119.7,3118.9,3.58841253]
[1767900717266,1.80307657,3119.6,3118.9,6.4695337]
[1767900717445,1.80307657,3119.6,3118.9,10.61685668]
[1767900717847,1.80307657,3119.6,3118.9,3.58841253]
[1767900717848,0.96207657,3119.5,3118.9,3.58841253]
[1767900718859,0.96207657,3119.5,3118.9,0.38221855]
[1767900719059,0.96207657,3119.5,3118.8,3.20631449]
[1767900719765,0.96207657,3119.4,3118.7,3.20646423]
[1767900720967,0.96207657,3119.4,3118.7,6.41292846]
[1767900723468,0.96207657,3119.4,3118.6,3.20651845]
[1767900723644,0.96207657,3119.4,3119.0,0.001]
[1767900723831,0.91748561,3119.3,3119.0,0.001]
[1767900724033,0.002,3119.1,3119.0,0.001]
[1767900726568,0.843,3119.4,3119.0,0.001]
[1767900727667,0.91699083,3119.4,3119.0,0.001]
[1767900728242,0.002,3119.4,3119.0,0.001]
[1767900728444,0.002,3119.4,3119.0,0.97574112]
[1767900729372,0.002,3119.9,3119.4,0.97474112]
[1767900729662,0.002,3119.9,3119.2,4.18063861]
[1767900730041,0.91699083,3119.9,3119.2,3.20589749]
[1767900731173,0.91499083,3119.7,3119.0,0.001]
[1767900731338,0.91499083,3119.7,3119.0,3.20710475]
[1767900731539,0.91499083,3119.7,3119.0,0.001]
[1767900732653,0.91499083,3119.7,3119.1,2.88112117]
[1767900732965,0.91499083,3119.7,3119.1,3.16933329]
[1767900733166,1.75599083,3119.7,3119.1,0.28821212]
[1767900733343,0.91499083,3119.6,3119.1,0.28821212]
[1767900733741,0.91499083,3119.6,3119.2,3.20595024]
[1767900734249,0.91499083,3119.6,3119.1,3.49421459]
[1767900735271,0.841,3119.7,3119.1,4.46895571]
[1767900735562,0.91499083,3119.8,3119.1,7.67500873]
[1767900735777,1.75599083,3119.8,3119.1,10.26791778]
[1767900736553,1.75599083,3119.8,3119.1,4.18074359]
[1767900736976,0.91499083,3119.8,3119.1,7.38679661]
[1767900737276,1.75599083,3119.8,3119.1,7.38679661]
[1767900737570,1.75599083,3119.8,3119.1,4.18074359]
[1767900737875,1.75599083,3119.8,3119.1,10.26791778]
[1767900738472,0.841,3119.8,3119.4,0.97474112]
[1767900738670,0.002,3119.5,3119.4,0.97474112]
[1767900738877,0.002,3119.5,3119.2,0.97474112]
[1767900739796,0.002,3119.5,3119.3,3.20584746]
[1767900740944,0.002,3119.5,3119.2,0.97474112]
[1767900740945,0.002,3119.5,3119.2,4.18066301]
[1767900741371,0.002,3119.5,3119.2,0.97474112]
[1767900741575,0.91699083,3119.5,3119.0,0.001]
[1767900741743,0.91499083,3119.4,3119.0,0.001]
[1767900742672,0.002,3119.5,3119.0,0.001]
[1767900742877,0.843,3119.5,3119.0,0.97574112]
[1767900743646,0.843,3119.5,3119.0,0.001]
[1767900745591,4.86557603,3119.5,3119.0,0.001]
[1767900745757,0.91499083,3119.4,3118.4,0.97474112]
[1767900746082,0.91499083,3119.2,3118.5,7.38802725]
[1767900746270,0.91499083,3119.4,3118.6,0.97474112]
[1767900748189,0.91499083,3119.3,3118.6,4.181262]
[1767900749702,0.91499083,3119.3,3118.5,3.20662362]
[1767900750208,0.91499083,3119.3,3118.6,3.20654096]
[1767900750363,0.91499083,3119.3,3118.5,3.20666987]
[1767900750703,0.91499083,3119.3,3118.5,6.41333974]
[1767900750866,0.91499083,3119.3,3118.5,7.38808086]
[1767900752400,0.91499083,3119.3,3118.9,0.001]
[1767900752970,4.12083992,3119.3,3118.9,0.001]
[1767900753196,4.93778943,3119.3,3118.9,0.001]
[1767900753892,0.95430408,3119.2,3118.9,0.001]
[1767900754198,0.95430408,3119.2,3118.2,0.002]
[1767900754359,0.95430408,3118.9,3118.2,0.002]
[1767900754559,0.95430408,3118.7,3118.2,0.002]
[1767900754763,1.13383449,3118.7,3118.2,0.002]
[1767900755378,0.95430408,3118.7,3118.2,0.002]
[1767900755996,3.20646697,3118.7,3118.2,0.002]
[1767900756201,0.95430408,3118.6,3118.2,0.002]
[1767900757159,9.29322896,3118.7,3117.9,0.002]
[1767900757160,0.95430408,3118.4,3117.9,0.002]
[1767900757362,0.95430408,3119.2,3117.9,0.96245051]
[1767900757695,0.17712536,3119.1,3118.4,0.96045051]
[1767900757898,0.841,3119.3,3118.7,0.96045051]
[1767900759405,0.002,3119.9,3119.3,0.96045051]
[1767900759697,0.843,3119.9,3119.1,0.96045051]
[1767900759898,1.79730408,3119.9,3119.1,0.96045051]
[1767900760298,0.95630408,3119.9,3119.1,0.96045051]
[1767900760490,0.843,3119.9,3119.1,0.96045051]
[1767900760687,0.002,3119.9,3119.1,0.96045051]
[1767900760998,0.002,3119.9,3119.2,2.88029502]
[1767900761187,0.95630408,3119.9,3119.2,2.88029502]
[1767900761391,0.95630408,3119.9,3119.3,3.58985393]
[1767900762998,0.002,3120.2,3119.6,0.96045051]
[1767900763571,0.95430408,3121.2,3120.0,3.84074553]
[1767900763773,3.20389593,3121.2,3120.3,2.88029502]
[1767900764006,3.61971593,3121.2,3120.3,3.84074553]
[1767900764208,0.41582,3121.2,3120.4,0.96045051]
[1767900764418,0.841,3121.1,3120.4,0.96045051]
[1767900765175,3.20369116,3121.4,3120.5,0.96045051]
[1767900765401,0.32036912,3121.3,3120.5,0.96045051]
[1767900766113,0.841,3121.4,3120.5,0.96045051]
[1767900766302,0.841,3121.4,3120.6,0.96045051]
[1767900767073,0.95430408,3121.3,3120.4,0.96045051]
[1767900767287,4.15818295,3121.3,3120.4,0.96045051]
[1767900767487,4.97847986,3121.3,3120.4,0.96045051]
[1767900767927,8.18235873,3121.3,3120.4,0.96045051]
[1767900768089,4.97847986,3121.3,3120.4,4.16516376]
[1767900769386,4.97847986,3121.3,3120.4,0.96045051]
[1767900769587,8.18235873,3121.3,3120.4,0.96045051]
[1767900770637,0.95430408,3121.1,3120.0,0.96045051]
[1767900770826,0.95430408,3121.1,3120.1,0.96045051]
[1767900770994,0.95430408,3121.1,3120.1,3.20500948]
[1767900771199,0.95430408,3121.1,3120.0,3.20509009]
[1767900771424,0.95430408,3121.1,3120.0,4.1655406]
[1767900771726,0.90233587,3121.2,3119.8,3.20527436]
[1767900771727,0.95430408,3120.9,3119.8,3.20527436]
[1767900771915,0.95430408,3120.8,3119.8,3.20527436]
[1767900772117,0.95430408,3120.8,3119.9,3.20521846]
[1767900772635,0.95430408,3120.8,3119.8,0.96045051]
[1767900772841,0.95430408,3120.7,3119.4,0.96045051]
[1767900773198,0.95430408,3120.6,3119.5,4.16599777]
[1767900773403,0.95430408,3120.6,3119.6,3.20553433]
[1767900773901,0.95430408,3120.4,3119.3,0.96045051]
[1767900774103,0.95430408,3120.2,3119.4,3.20568884]
[1767900774309,0.95430408,3120.2,3119.4,3.94289067]
[1767900774834,0.95430408,3120.2,3119.4,0.73720183]
[1767900775028,0.95430408,3120.2,3119.4,3.94290014]
[1767900775534,0.95430408,3120.2,3119.4,0.73720183]
[1767900775743,0.95430408,3120.2,3118.7,4.0474506]
[1767900775744,0.95430408,3120.2,3119.1,0.96045051]
[1767900775944,0.95430408,3120.0,3119.1,0.96045051]
[1767900776304,0.95430408,3120.0,3119.1,4.16649292]
[1767900777137,0.95430408,3120.0,3119.1,4.16647759]
[1767900777433,0.95430408,3120.0,3119.1,4.90375099]
[1767900778830,4.15943284,3120.0,3119.7,0.001]
[1767900779338,0.95430408,3120.2,3119.7,0.001]
[1767900779507,3.20486057,3120.3,3119.7,0.96145051]
[1767900780216,3.92991595,3120.3,3119.7,0.96145051]
[1767900780723,3.20451195,3120.6,3119.8,0.96045051]
[1767900781031,3.20451195,3120.6,3119.9,0.96045051]
[1767900782527,4.05901467,3120.7,3119.9,0.96045051]
[1767900782725,3.20445476,3120.7,3120.0,0.93248531]
[1767900783838,3.20634902,3120.8,3120.0,0.93248531]
[1767900784406,6.41069804,3120.8,3120.0,0.93248531]
[1767900785536,7.34175916,3120.8,3120.0,0.93248531]
[1767900791342,3.20451195,3120.6,3120.0,0.93248531]
[1767900791642,0.99260637,3120.5,3119.7,0.001]
[1767900792729,0.99260637,3120.5,3119.7,0.93065552]
[1767900793548,4.19732371,3120.4,3119.7,0.001]
[1767900794047,7.40204105,3120.4,3119.7,0.001]
[1767900794747,0.99260637,3120.3,3119.7,0.001]
[1767900794941,3.20502547,3120.1,3119.7,0.001]
[1767900795147,3.77207165,3120.2,3119.7,0.001]
[1767900795345,0.99260637,3120.1,3119.7,0.001]
[1767900795647,0.99260637,3120.1,3119.1,3.20600361]
[1767900795837,0.99260637,3120.1,3119.1,4.13565913]
[1767900796039,0.99260637,3119.9,3119.1,0.92965552]
[1767900796826,3.20533367,3119.8,3119.1,0.92965552]
[1767900798253,3.20523692,3119.9,3119.2,0.92965552]
[1767900799221,4.19784329,3119.9,3118.8,2.88029502]
[1767900799545,4.19784329,3119.9,3118.9,0.92965552]
[1767900799546,0.99260637,3119.8,3118.9,0.92965552]
[1767900799728,0.59874151,3119.8,3118.9,0.92965552]
[1767900800551,0.59874151,3119.8,3119.1,0.92965552]
[1767900800754,3.20508005,3120.1,3119.5,0.92965552]
[1767900801055,3.77207091,3120.2,3119.5,0.92965552]
[1767900804163,3.77207091,3120.2,3119.8,0.001]
[1767900805226,0.98236604,3120.5,3119.8,0.001]
[1767900805531,4.04571734,3120.4,3119.8,0.001]
[1767900805743,8.23080072,3120.4,3119.8,0.001]
[1767900806147,5.02608338,3120.4,3119.8,0.001]
[1767900807165,0.002,3120.8,3120.1,2.87869523]
[1767900807376,0.002,3120.8,3120.3,2.87869523]
[1767900807663,0.002,3120.8,3120.2,0.92965552]
[1767900808033,0.002,3120.8,3120.4,0.92965552]
[1767900808853,0.002,3120.8,3120.2,0.92965552]
[1767900809745,0.002,3120.8,3120.1,0.38083507]
[1767900810262,0.002,3120.8,3120.0,0.92965552]
[1767900810556,0.98236604,3120.8,3120.0,0.92965552]
[1767900811358,3.20440926,3120.7,3120.0,0.92965552]
[1767900811662,3.20635501,3120.8,3120.1,0.92965552]
[1767900812272,4.18672105,3120.8,3120.1,0.92965552]
[1767900812440,3.20635501,3120.8,3120.1,0.92965552]
[1767900812639,0.002,3120.8,3120.2,0.92707847]
[1767900813662,0.002,3120.8,3120.4,0.92707847]
[1767900813861,0.002,3121.1,3120.7,0.92707847]
[1767900817063,0.002,3121.1,3120.4,0.92707847]
[1767900817273,0.002,3121.1,3120.5,0.92707847]
[1767900818037,0.002,3121.1,3120.2,0.92707847]
[1767900818266,3.20599859,3121.1,3120.4,0.92707847]
[1767900818463,4.1331421,3121.1,3120.4,0.92707847]
[1767900818668,3.20599859,3121.1,3120.4,0.92707847]
[1767900818935,0.002,3120.8,3120.5,0.92707847]
[1767900822584,0.002,3121.1,3120.5,0.92707847]
[1767900823865,2.03480899,3121.1,3120.3,0.92707847]
[1767900824072,2.03480899,3121.1,3120.4,0.92707847]
[1767900824475,1.10766548,3121.1,3120.4,0.92707847]
[1767900824800,4.31170709,3121.1,3120.4,0.92707847]
[1767900825091,0.002,3121.1,3120.7,0.92707847]
[1767900826680,3.20600167,3121.1,3120.7,0.92707847]
[1767900826890,0.002,3121.1,3120.5,0.92707847]
[1767900828999,0.002,3121.1,3120.6,0.92707847]
[1767900830291,0.92914351,3121.1,3120.5,3.20459238]
[1767900831364,0.92914351,3121.1,3120.8,0.001]
[1767900835095,0.002,3121.1,3120.9,0.92707847]
[1767900841079,0.002,3121.1,3120.8,0.001]
[1767900841483,0.38278387,3121.1,3120.8,0.001]
[1767900841692,0.002,3121.1,3120.8,0.001]
[1767900842603,4.04466752,3121.5,3120.9,3.83440631]
[1767900842781,3.20342513,3121.7,3121.0,0.95571108]
[1767900842980,4.04442513,3121.7,3121.2,0.95571108]
[1767900843190,4.04442513,3121.7,3121.0,0.95571108]
[1767900843191,4.8659644,3121.7,3121.0,0.95571108]
[1767900843391,9.03716081,3121.7,3121.0,0.95571108]
[1767900843976,9.03716081,3121.7,3120.8,0.95671108]
[1767900844306,0.002,3121.1,3120.8,4.16101537]
[1767900844505,0.002,3121.1,3120.8,7.0397106]
[1767900844804,0.002,3121.1,3120.8,7.03969094]
[1767900845201,0.002,3121.1,3120.8,3.83540631]
[1767900845915,0.002,3121.1,3120.8,7.03969124]
[1767900846907,0.002,3121.1,3120.8,3.83540631]
[1767900847109,0.002,3121.1,3120.8,7.03967439]
[1767900847981,0.002,3121.1,3120.8,3.83540631]
[1767900848301,0.002,3121.1,3120.8,7.03969631]
[1767900848714,0.002,3121.1,3120.9,0.99667776]
[1767900849615,0.002,3121.1,3121.0,0.99667776]
[1767900850922,4.95373333,3121.7,3121.0,0.99667776]
[1767900851124,5.76943179,3121.7,3121.0,0.99667776]
[1767900851709,8.97283737,3121.7,3120.8,3.87637299]
[1767900851912,8.97283737,3121.7,3120.9,0.99667776]
[1767900852214,5.76943179,3121.7,3120.9,0.99667776]
[1767900853824,8.97283737,3121.7,3120.9,0.99667776]
[1767900854322,0.89728374,3121.6,3120.9,0.99667776]
[1767900855222,3.20358801,3121.5,3120.9,0.99667776]
[1767900855724,0.89728374,3121.6,3120.9,0.99667776]
[1767900855919,3.20326223,3121.9,3121.3,3.87537299]
[1767900856086,3.20312618,3122.0,3121.5,3.87537299]
[1767900856293,0.90932775,3122.8,3122.0,0.99667776]
[1767900856532,4.11158213,3122.8,3122.3,2.87250614]
[1767900856696,4.11146778,3123.0,3122.1,3.87537299]
[1767900856891,0.49524678,3122.9,3122.3,3.87537299]
[1767900857097,0.90932775,3123.0,3122.3,3.87537299]
[1767900857327,4.11139365,3123.0,3122.3,0.99667776]
[1767900857531,3.2040659,3123.0,3122.3,0.99667776]
[1767900858425,0.90932775,3122.9,3122.2,2.87869523]
[1767900858626,0.90932775,3122.8,3122.2,2.87869523]
[1767900859229,0.90932775,3122.8,3121.8,0.841]
[1767900859230,0.90932775,3122.7,3122.0,6.08175551]
[1767900859426,3.20229246,3122.8,3122.1,0.99667776]
[1767900860033,3.92685875,3122.9,3122.1,0.99667776]
[1767900860711,0.91132775,3123.0,3122.5,2.87869523]
[1767900861111,0.002,3123.0,3122.5,2.87869523]
[1767900862215,0.002,3123.0,3122.3,7.07809836]
[1767900862535,0.002,3123.0,3122.4,0.99667776]
[1767900862724,0.41332864,3123.0,3122.2,7.07820116]
[1767900863230,0.41332864,3123.0,3122.3,3.20275597]
[1767900863396,3.61541385,3123.0,3122.3,0.99667776]
[1767900863601,0.41332864,3123.0,3122.3,0.99667776]
[1767900864003,3.20405583,3123.0,3122.3,0.99667776]
[1767900864536,3.20405583,3123.0,3121.5,3.20352409]
[1767900864537,0.90932775,3122.9,3121.5,3.20352409]
[1767900864712,0.90932775,3122.9,3121.0,0.96094864]
[1767900864713,0.90932775,3122.9,3122.1,3.20291946]
[1767900864915,0.90932775,3122.9,3122.2,3.20284777]
[1767900865140,1.60853563,3122.9,3122.2,4.19952553]
[1767900865929,4.81073682,3122.9,3122.2,0.99667776]
[1767900866508,8.01293801,3122.9,3122.2,0.99667776]
[1767900866707,4.81073682,3122.9,3122.2,0.99667776]
[1767900867343,4.81073682,3122.9,3122.2,4.19952489]
[1767900867521,0.48127368,3122.8,3122.2,4.19952489]
[1767900868748,0.48127368,3122.8,3122.2,0.99667776]
[1767900868912,4.11154776,3122.9,3122.2,0.99667776]
[1767900869822,0.002,3122.5,3122.2,0.99667776]
[1767900870021,4.11154776,3122.9,3122.2,0.99667776]
[1767900870233,0.002,3122.8,3122.2,0.99667776]
[1767900870547,0.90932775,3122.7,3121.8,3.20326053]
[1767900870715,0.90932775,3122.6,3121.7,4.20000881]
[1767900871034,0.90932775,3122.6,3121.8,0.99667776]
[1767900871236,0.90932775,3122.6,3121.8,4.19995131]
[1767900871442,0.90932775,3122.6,3121.8,0.99667776]
[1767900872153,4.11187892,3122.6,3121.8,0.99667776]
[1767900872338,0.45232337,3122.5,3121.8,0.99667776]
[1767900874119,0.45232337,3122.5,3122.0,3.20307495]
[1767900874317,0.843,3122.8,3122.5,0.93362754]
[1767900874318,0.002,3122.8,3122.5,0.93362754]
[1767900877363,0.002,3122.8,3122.3,0.93362754]
[1767900877656,0.002,3122.8,3122.5,0.93362754]
[1767900879367,0.002,3122.8,3122.2,4.13648099]
[1767900879529,0.002,3122.8,3122.4,0.93362754]
[1767900882061,0.002,3122.8,3122.5,0.93362754]
[1767900882377,3.20163923,3123.4,3122.9,0.93362754]
[1767900882536,0.72442133,3123.3,3122.9,0.93362754]
[1767900882731,0.72442133,3123.3,3122.7,0.93362754]
[1767900882931,3.20184426,3123.2,3122.7,0.93362754]
[1767900883271,6.40368852,3123.2,3122.7,0.93362754]
[1767900883836,0.002,3123.0,3122.7,0.93362754]
[1767900884056,0.64256885,3123.0,3122.3,0.93362754]
[1767900884732,1.55297932,3123.0,3122.3,0.93362754]
[1767900884937,3.20215184,3122.9,3122.3,0.93362754]
[1767900885367,1.55297932,3123.0,3122.3,4.13638959]
[1767900885559,0.64256885,3123.0,3122.4,0.93362754]
[1767900885758,0.002,3123.0,3122.4,0.93362754]
[1767900887179,0.002,3123.0,3122.5,0.93362754]
[1767900887647,0.91041047,3123.9,3123.0,3.80801709]
[1767900887841,0.91041047,3123.9,3123.1,0.93362754]
[1767900888191,0.84,3124.0,3123.1,0.93362754]
[1767900888476,0.17504105,3123.9,3123.1,0.93362754]
[1767900889149,3.20122927,3123.8,3123.1,0.93362754]
[1767900889467,0.17504105,3123.9,3123.1,0.93362754]
[1767900889669,6.57737453,3123.9,3123.2,0.93362754]
[1767900889870,0.19254515,3123.8,3123.2,0.93362754]
[1767900891273,3.39387688,3123.8,3123.2,0.93362754]
[1767900891474,6.59520861,3123.8,3123.2,0.93362754]
[1767900891842,3.39387688,3123.8,3123.2,0.93362754]
[1767900892041,0.76804875,3123.7,3123.2,0.93362754]
[1767900892551,0.17504105,3123.9,3122.5,2.87438955]
[1767900892773,3.19972678,3125.3,3124.3,0.93362754]
[1767900892961,3.19972678,3125.3,3123.2,12.80737704]
[1767900892962,0.31997268,3125.2,3124.5,3.80801709]
[1767900893162,0.84,3125.1,3124.5,0.93362754]
[1767900893362,0.84,3125.1,3124.5,4.13411409]
[1767900893544,0.84,3125.1,3124.5,3.20048655]
[1767900893744,0.84,3125.1,3124.4,3.20059406]
[1767900894045,0.84,3125.1,3124.3,0.93362754]
[1767900894244,0.91041047,3125.4,3124.5,4.13412378]
[1767900894444,0.91041047,3125.7,3124.6,0.93362754]
[1767900894652,1.75041047,3125.6,3124.6,0.93362754]
[1767900894852,0.17504105,3125.5,3124.6,0.93362754]
[1767900895052,1.08545152,3125.5,3124.6,0.93362754]
[1767900895347,7.30959137,3125.4,3124.4,0.93362754]
[1767900895547,7.30959137,3125.4,3124.4,4.13423941]
[1767900896587,0.002,3125.2,3124.4,4.13423941]
[1767900896883,0.73315914,3125.2,3124.4,0.93362754]
[1767900897082,0.91041047,3125.1,3124.2,0.93362754]
[1767900897249,0.91041047,3125.1,3124.3,3.20068592]
[1767900897449,4.11032569,3125.1,3124.1,7.33544169]
[1767900897664,0.48434848,3125.0,3124.2,0.93362754]
[1767900899482,0.48434848,3125.0,3124.3,3.20071696]
[1767900899483,0.91041047,3124.9,3124.3,3.20071696]
[1767900899680,0.84,3124.8,3124.2,4.13440495]
[1767900900359,0.84,3124.8,3124.2,7.33522435]
[1767900900556,0.84,3124.7,3124.2,7.33522435]
[1767900900879,0.84,3124.7,3124.2,8.67627264]
[1767900901284,0.84,3124.7,3124.2,7.33522435]
[1767900901781,0.84,3124.7,3124.3,0.93362754]
[1767900903454,0.84,3124.7,3124.4,4.11069824]
[1767900903657,0.84,3124.7,3124.4,7.31131275]
[1767900903854,0.84,3124.7,3124.5,0.91008373]
[1767900904079,0.73315914,3125.2,3124.6,0.91008373]
[1767900904278,0.84,3125.1,3124.6,0.91008373]
[1767900904666,0.93333571,3125.0,3124.3,3.20068251]
[1767900904862,0.84,3125.1,3124.4,0.91008373]
[1767900905466,3.2001024,3124.9,3124.1,4.17004668]
[1767900906588,4.12063199,3125.0,3124.1,4.17004668]
[1767900906886,0.002,3125.2,3124.2,0.96914156]
[1767900907058,0.84,3125.1,3124.2,0.96914156]
[1767900907487,0.84,3125.1,3124.4,0.96914156]
[1767900908260,4.03990518,3125.1,3124.4,0.96914156]
[1767900908457,0.84,3125.1,3124.4,0.96914156]
[1767900909264,0.84,3125.1,3124.2,3.20081163]
[1767900909265,7.64405955,3125.1,3124.2,3.20081163]
[1767900909600,0.92059767,3125.0,3124.1,0.96914156]
[1767900909779,0.92059767,3125.0,3124.1,4.17006251]
[1767900909971,2.87438955,3124.6,3123.6,4.17053169]
[1767900910188,0.84,3124.5,3124.4,0.001]
[1767900910387,2.13203663,3124.5,3123.7,3.20124383]
[1767900910565,1.76059767,3124.5,3123.8,3.20122833]
[1767900911068,1.76059767,3124.5,3123.6,0.96914156]
[1767900911272,1.76059767,3124.5,3123.7,3.20129704]
[1767900911694,4.96112892,3124.5,3123.7,3.20129704]
[1767900912099,1.76059767,3124.5,3123.7,3.20129704]
[1767900912312,1.76059767,3124.5,3123.7,3.93848273]
[1767900912593,4.96114371,3124.5,3123.7,0.73718569]
[1767900912796,0.92059767,3124.4,3123.4,0.96914156]
[1767900912994,7.24109208,3124.5,3123.4,0.96914156]
[1767900913371,4.04054604,3124.5,3123.7,0.96914156]
[1767900913567,4.53666041,3124.5,3123.7,0.96914156]
[1767900913770,0.84,3124.4,3123.8,0.96914156]
[1767900915197,0.84,3124.4,3123.6,0.96914156]
[1767900915679,3.69666041,3124.5,3123.7,0.96914156]
[1767900915887,0.84,3124.4,3123.7,0.96914156]
[1767900916076,0.92059767,3124.3,3123.3,0.96914156]
[1767900916275,0.77372064,3124.4,3123.5,4.17066807]
[1767900916485,0.77372064,3124.4,3123.6,0.96914156]
[1767900916683,0.84,3124.3,3123.6,0.96914156]
[1767900917313,0.77372064,3124.4,3123.7,0.96914156]
[1767900917511,0.84,3124.3,3123.7,0.96914156]
[1767900917680,3.69666041,3124.5,3123.7,0.96914156]
[1767900918012,0.84,3124.4,3123.7,0.96914156]
[1767900918521,0.92059767,3124.3,3123.3,0.96914156]
[1767900918805,0.92059767,3124.3,3123.3,4.17087765]
[1767900919003,2.10643269,3124.3,3123.4,0.96914156]
[1767900919177,0.92059767,3124.2,3123.3,0.73728102]
[1767900919705,0.92059767,3124.2,3123.3,3.93897239]
[1767900920295,3.20092186,3124.1,3123.4,0.96914156]
[1767900921139,0.84,3124.0,3123.4,0.96914156]
[1767900922303,0.84,3124.0,3123.4,4.9080063]
[1767900923003,0.84,3124.0,3123.7,0.001]
[1767900926798,7.24208366,3124.0,3123.7,0.001]
[1767900927007,0.92059767,3123.9,3123.2,0.96914156]
[1767900927694,3.20122927,3123.8,3123.2,0.96914156]
[1767900928707,0.84,3123.7,3123.2,0.96914156]
[1767900929480,0.84,3123.6,3123.2,0.96914156]
[1767900929710,0.84,3123.6,3123.2,1.38625569]
[1767900930618,0.84,3123.5,3123.3,0.96914156]
[1767900931117,0.84,3123.5,3123.2,0.41711413]
[1767900931313,0.84,3123.5,3123.1,0.96914156]
[1767900934696,0.84,3123.5,3123.1,4.17105288]
[1767900934898,3.20092186,3124.1,3123.2,0.99961096]
[1767900935115,0.84,3124.0,3123.3,0.99961096]
[1767900935320,0.84,3123.9,3123.3,0.99961096]
[1767900937892,4.0411583,3123.9,3123.5,0.99961096]
[1767900938090,4.0411583,3123.9,3123.4,1.00061096]
[1767900938911,0.84,3123.9,3123.4,1.00061096]
[1767900940212,3.2010388,3124.0,3123.4,1.00061096]
[1767900940417,0.84,3123.9,3123.5,0.99961096]
[1767900940913,0.84,3123.8,3123.5,0.99961096]
[1767900942126,0.84,3123.8,3123.4,0.001]
[1767900942327,0.84,3123.8,3123.4,1.00061096]
[1767900944926,4.04124173,3123.8,3123.4,1.00061096]
[1767900945115,0.84,3123.8,3123.4,1.00061096]
[1767900945627,4.04124358,3123.8,3123.4,1.00061096]
[1767900945997,0.84,3123.8,3123.4,0.001]
[1767900946330,0.95828115,3123.5,3122.7,4.20194871]
[1767900946509,3.83109854,3123.4,3122.7,3.20233775]
[1767900946705,3.83109854,3123.2,3122.4,0.99961096]
[1767900946913,2.87281739,3122.9,3121.6,0.99961096]
[1767900947223,0.84,3122.8,3122.1,4.20252038]
[1767900947395,0.84,3122.8,3122.1,1.74017385]
[1767900947803,0.84,3122.8,3122.1,4.94312436]
[1767900948004,0.84,3122.8,3122.1,1.74017385]
[1767900948716,0.84,3122.8,3122.2,3.20286701]
[1767900948918,0.84,3122.8,3122.1,4.94310495]
[1767900949524,0.95828115,3123.3,3122.4,0.99961096]
[1767900949700,0.84,3123.2,3122.4,0.99961096]
[1767900950096,4.16002289,3123.3,3122.4,0.99961096]
[1767900950312,0.84,3123.1,3122.4,0.99961096]
[1767900950935,0.84,3123.0,3122.6,0.99961096]
[1767900954431,0.84,3122.9,3122.7,0.99961096]
[1767900956340,3.20180683,3123.3,3122.7,0.99961096]
[1767900956506,0.84,3122.9,3122.7,0.99961096]
[1767900959735,0.84,3122.9,3122.4,4.20226864]
[1767900959940,0.84,3122.9,3122.5,0.99961096]
[1767900960332,3.20181432,3123.3,3122.5,0.99961096]
[1767900960538,0.84,3123.2,3122.5,0.99961096]
[1767900960933,3.71281739,3123.2,3122.5,0.99961096]
[1767900961143,0.84,3123.2,3122.9,0.001]
[1767900961520,4.67109854,3123.2,3122.4,0.99961096]
[1767900961711,2.87281739,3123.0,3122.4,0.99961096]
[1767900962245,6.07492422,3123.0,3122.4,0.99961096]
[1767900963048,9.27703105,3123.0,3122.4,0.99961096]
[1767900963209,0.84,3122.9,3122.4,0.99961096]
[1767900963413,0.84,3122.9,3122.1,3.20295318]
[1767900963414,2.87281739,3122.8,3122.1,0.96518454]
[1767900963726,2.87281739,3122.4,3122.1,0.96518454]
[1767900963923,0.84,3122.3,3121.9,4.16831067]
[1767900964128,0.83800001,3122.3,3122.0,0.96518454]
[1767900964328,0.83800001,3122.3,3122.0,4.16819899]
[1767900965123,0.83800001,3122.3,3122.0,0.96518454]
[1767900966179,0.83800001,3122.3,3122.0,4.16825082]
[1767900966326,0.83800001,3122.3,3122.1,4.12227371]
[1767900966644,0.83600002,3122.3,3122.1,4.85480771]
[1767900967349,0.83600002,3122.3,3121.8,4.12255271]
[1767900967642,0.83600002,3122.3,3121.8,0.91934733]
[1767900967845,0.83600002,3122.3,3121.8,4.12262325]
[1767900968049,0.83600002,3122.3,3121.9,3.20317189]
[1767900968251,0.83600002,3122.3,3121.8,0.91934733]
[1767900968640,0.83600002,3122.3,3121.8,4.12261887]
[1767900968839,0.83600002,3122.3,3121.8,1.65195579]
[1767900969019,0.83600002,3122.3,3121.8,0.91934733]
[1767900970264,3.78563065,3122.2,3121.2,0.91934733]
[1767900970456,2.87281739,3122.0,3121.3,4.12306337]
[1767900970640,2.87281739,3122.0,3121.3,4.85586076]
[1767900970847,2.87281739,3122.0,3121.4,0.91934733]
[1767900971173,2.87281739,3122.0,3121.3,3.93651343]
[1767900971174,0.91281326,3122.8,3121.9,0.91934733]
[1767900971336,0.84,3122.7,3121.9,0.91934733]
[1767900971644,4.62563065,3122.6,3121.7,0.91934733]
[1767900971844,5.08819372,3122.6,3121.7,0.91934733]
[1767900972244,3.20256204,3122.5,3121.8,0.91934733]
[1767900973888,5.08819372,3122.6,3121.8,0.91934733]
[1767900974037,10.11781133,3122.6,3121.8,0.91934733]
[1767900974366,0.84,3122.5,3122.1,0.001]
[1767900975365,1.75281326,3122.5,3122.1,0.001]
[1767900976035,0.91281326,3122.4,3122.1,0.001]
[1767900976245,4.11558045,3122.3,3122.1,0.001]
[1767900976562,6.07553247,3122.4,3122.1,0.001]
[1767900976737,0.84,3122.3,3122.1,0.001]
[1767900977063,2.87281739,3122.5,3122.1,0.001]
[1767900977275,0.84,3122.2,3122.1,0.001]
[1767900978572,4.04286977,3122.2,3122.1,0.001]
[1767900978741,4.04286977,3122.2,3121.6,0.91934733]
[1767900978942,4.04286977,3122.2,3121.4,3.20366719]
[1767900978943,4.95568303,3122.2,3121.4,4.12301452]
[1767900979175,1.75281326,3122.2,3121.5,3.20354287]